bitfinex/quotes_SOLUSD_20240705
["timestamp","ask_amount","ask_price","bid_price","bid_amount"]
[1720140420981,0.1,127.09,127.01,27.555]
[1720140421197,7.9688,127.09,127.0,7.8736]
[1720140421352,0.1,127.09,126.94,59.63]
[1720140421657,0.1,127.09,126.96,7.8764]
[1720140421859,7.8737,127.01,126.93,7.8777]
[1720140422060,7.8734,127.01,126.87,39.4093]
[1720140422280,15.0,127.07,126.93,19.6955]
[1720140422281,39.63,127.07,126.93,19.6955]
[1720140422797,39.63,127.07,126.9,48.02]
[1720140423084,19.6834,127.02,126.85,19.7072]
[1720140423276,39.63,127.03,126.82,6.6609]
[1720140423277,139.63,127.03,126.82,6.6609]
[1720140423456,39.63,126.99,126.86,7.8825]
[1720140423655,7.8759,126.97,126.82,48.02]
[1720140423890,59.3106,127.03,126.88,19.7036]
[1720140424055,45.17,127.02,126.85,19.7082]
[1720140424484,19.6881,126.98,126.85,19.7082]
[1720140424681,39.63,126.96,126.82,19.7129]
[1720140424886,0.17,126.95,126.82,19.7129]
[1720140425059,0.17,126.95,126.84,19.7083]
[1720140425376,100.0,127.02,126.87,19.7047]
[1720140425566,100.0,126.98,126.8,39.63]
[1720140425766,7.8817,126.88,126.8,7.8858]
[1720140425953,7.8782,126.94,126.8,39.4302]
[1720140426159,39.63,127.03,126.8,54.4302]
[1720140426360,59.3118,127.03,126.83,39.63]
[1720140426666,0.1,127.09,126.88,48.02]
[1720140426980,0.1,127.09,126.94,7.8777]
[1720140426981,19.7713,127.09,126.94,7.8777]
[1720140427163,19.7713,127.09,126.92,87.4136]
[1720140427367,19.6761,127.06,126.89,20.0]
[1720140427565,7.8729,127.02,126.91,19.6975]
[1720140427771,7.872,127.04,126.92,0.17]
[1720140428084,0.1,127.09,126.91,48.02]
[1720140428281,0.1,127.09,127.03,7.8718]
[1720140428489,0.1,127.09,127.03,19.679]
[1720140428786,7.8691,127.08,126.98,19.6866]
[1720140428994,0.1,127.09,126.99,27.874]
[1720140429169,0.1,127.09,126.98,19.6866]
[1720140429370,0.1,127.09,127.0,7.8739]
[1720140429583,0.1,127.09,126.98,19.6866]
[1720140429777,7.8708,127.06,126.97,7.8757]
[1720140429968,0.1,127.09,126.92,0.17]
[1720140430274,0.1,127.09,126.99,48.02]
[1720140430477,0.1,127.09,127.05,7.8709]
[1720140430783,0.1,127.09,127.05,7.8703]
[1720140430981,0.1,127.09,127.04,27.5496]
[1720140431190,0.1,127.09,127.08,7.869]
[1720140431378,0.1,127.09,127.08,8.039]
[1720140431686,0.1,127.09,127.08,7.869]
[1720140431888,0.1,127.09,127.06,19.6743]
[1720140432061,0.1,127.09,127.08,7.869]
[1720140432781,0.04679818,127.12,127.11,27.5352]
[1720140432967,0.04679818,127.12,127.11,47.5352]
[1720140433171,0.1,127.19,127.14,19.6623]
[1720140433374,0.1,127.19,127.11,68.02]
[1720140433571,0.1,127.19,127.16,19.6589]
[1720140433868,0.1,127.19,127.12,39.6649]
[1720140434177,0.1,127.19,127.15,19.6614]
[1720140434374,0.1,127.19,127.14,0.17]
[1720140434693,0.1,127.19,127.18,7.8628]
[1720140435082,0.1,127.19,127.14,21.3363474]
[1720140435291,0.1,127.19,127.14,1.6733474]
[1720140435861,7.8647,127.15,127.14,1.6733474]
[1720140436061,0.1,127.19,127.14,1.6733474]
[1720140436507,7.8647,127.15,127.14,1.6733474]
[1720140437003,8.0347,127.15,127.1,0.8366737]
[1720140437173,100.1,127.19,127.1,0.8366737]
[1720140437174,7.8672,127.11,127.1,0.8366737]
[1720140437497,6.3906,127.1,126.98,19.6867]
[1720140437686,7.8696,127.08,126.98,19.6867]
[1720140437870,0.17,127.07,126.98,19.6867]
[1720140438074,0.17,127.07,126.97,0.8366737]
[1720140438589,7.8739,127.01,126.97,0.8366737]
[1720140438770,100.0,127.03,126.97,0.8366737]
[1720140438966,45.0,127.07,126.85,7.8832]
[1720140438967,7.8783,126.94,126.85,7.8832]
[1720140439184,7.879,126.92,126.84,0.8366737]
[1720140439493,7.8768,126.96,126.86,7.8821]
[1720140439698,100.0,127.0,126.91,7.8794]
[1720140439699,7.8742,127.0,126.91,7.8794]
[1720140439903,7.8742,127.0,126.88,19.7024]
[1720140439904,0.17,126.99,126.88,19.7024]
[1720140440075,7.877,126.96,126.86,7.8822]
[1720140440268,7.8777,126.94,126.84,20.5458737]
[1720140440465,39.23,126.98,126.85,7.8827]
[1720140440687,45.17,126.97,126.86,7.8824]
[1720140440872,0.17,126.97,126.86,7.8824]
[1720140441086,7.8783,126.93,126.84,28.4293737]
[1720140441278,0.17,126.92,126.84,20.5458737]
[1720140441676,0.17,126.92,126.85,7.8833]
[1720140442200,39.23,127.02,126.84,0.8366737]
[1720140442369,7.8765,126.96,126.89,19.7019]
[1720140442571,100.0,126.99,126.85,27.5905]
[1720140442794,7.879,126.92,126.85,19.7072]
[1720140442984,100.0,126.95,126.84,0.8366737]
[1720140443167,7.8814,126.89,126.84,0.8366737]
[1720140443369,39.23,126.94,126.84,0.8366737]
[1720140443370,115.0,126.93,126.84,0.8366737]
[1720140443574,7.8809,126.89,126.84,0.8366737]
[1720140443787,0.17,126.88,126.84,0.8366737]
[1720140444887,16.0122,126.97,126.84,0.8366737]
[1720140445092,15.0,127.01,126.84,0.8366737]
[1720140445289,39.23,127.02,126.84,0.8366737]
[1720140445596,6.5864,127.03,126.96,7.8763]
[1720140445806,6.5864,127.03,126.85,48.02]
[1720140446111,7.8765,126.96,126.89,19.7007]
[1720140446285,119.6878,126.99,126.85,19.7067]
[1720140446500,7.8777,126.95,126.86,7.8821]
[1720140446678,7.8777,126.95,126.87,7.8817]
[1720140446879,7.874,127.0,126.9,19.7003]
[1720140447104,39.23,127.02,126.86,39.4118]
[1720140447400,6.5864,127.03,126.94,19.6927]
[1720140447599,39.23,127.07,126.97,19.6885]
[1720140447788,39.23,127.07,126.88,48.02]
[1720140447996,39.23,127.07,126.99,7.8746]
[1720140447997,7.8696,127.07,126.99,7.8746]
[1720140448197,7.8696,127.07,127.0,45.0]
[1720140448510,39.23,127.12,127.03,7.8721]
[1720140448711,100.0,127.14,127.01,7.8729]
[1720140449004,100.0,127.11,126.97,19.6895]
[1720140449204,19.6711,127.09,126.97,19.6895]
[1720140449379,19.6666,127.12,126.99,19.6854]
[1720140449579,39.23,127.14,127.0,45.0]
[1720140449809,7.8683,127.1,127.02,7.8727]
[1720140449988,7.8671,127.12,127.04,7.8715]
[1720140450185,39.23,127.14,127.05,7.8706]
[1720140450504,0.1,127.19,127.09,19.671]
[1720140451008,7.8653,127.14,127.06,19.6756]
[1720140451303,0.1,127.19,127.07,45.0]
[1720140451477,7.863,127.18,127.1,7.8677]
[1720140451681,7.8642,127.16,127.09,19.6708]
[1720140451881,0.1,127.19,127.07,45.0]
[1720140452103,0.1,127.19,127.08,19.6714]
[1720140452280,0.1,127.19,127.09,45.0]
[1720140452488,19.6573,127.18,127.08,3.51362628]
[1720140452685,7.8684,127.09,127.08,3.51362628]
[1720140452901,78.5464,127.18,127.01,19.6828]
[1720140452902,100.0,127.17,127.01,19.6828]
[1720140453095,100.0,127.13,127.01,23.19836277]
[1720140453408,100.0,127.11,127.01,3.51556277]
[1720140453609,7.8735,127.01,126.92,39.3927]
[1720140453784,100.0,127.07,126.93,3.51777852]
[1720140453785,0.17,127.0,126.93,3.51777852]
[1720140453986,7.8757,126.98,126.93,3.51777852]
[1720140454304,0.17,126.97,126.93,3.51777852]
[1720140454508,7.8776,126.95,126.93,3.51777852]
[1720140454684,7.8777,126.94,126.93,3.51777852]
[1720140454889,7.8777,126.94,126.88,27.5837]
[1720140454890,0.17,126.94,126.88,27.5837]
[1720140455195,39.23,127.01,126.89,7.8808]
[1720140455397,0.17,127.0,126.94,7.8776]
[1720140455696,0.17,127.0,126.89,3.51888744]
[1720140456009,0.17,127.0,126.93,7.8782]
[1720140456394,0.17,127.0,126.92,19.6971]
[1720140456711,0.17,127.0,126.93,11.39557852]
[1720140456913,0.17,127.0,126.93,3.51777852]
[1720140457113,100.17,127.0,126.84,20.5462737]
[1720140457300,7.8769,126.96,126.85,3.51999706]
[1720140457493,7.8783,126.94,126.86,19.7055]
[1720140457691,7.8759,126.97,126.86,19.7055]
[1720140457912,0.17,126.96,126.9,7.8801]
[1720140458080,98.2788,127.02,126.9,19.6991]
[1720140458081,39.23,127.02,126.9,19.6991]
[1720140458285,39.23,127.02,126.87,3.51944216]
[1720140458286,7.8767,126.96,126.87,3.51944216]
[1720140458487,7.8753,126.98,126.87,3.51944216]
[1720140458688,7.8745,127.0,126.92,7.8788]
[1720140458899,7.873,127.02,126.93,19.6948]
[1720140459103,100.0,127.05,126.93,19.6948]
[1720140459321,7.8731,127.02,126.95,7.877]
[1720140459616,7.8723,127.03,126.96,7.8764]
[1720140459819,7.8728,127.02,126.96,19.69]
[1720140459986,7.8721,127.04,126.96,19.69]
[1720140460301,7.8752,126.98,126.9,7.8797]
[1720140460488,39.23,127.04,126.91,45.0]
[1720140460806,7.8735,127.01,126.93,7.8782]
[1720140461019,100.0,127.02,126.87,393.61944216]
[1720140461190,39.23,127.04,126.91,7.879]
[1720140461516,7.8741,127.0,126.92,7.8785]
[1720140461725,7.8741,127.0,126.93,7.8783]
[1720140461892,39.23,127.04,126.88,477.5265]
[1720140462221,7.8692,127.08,127.01,7.8732]
[1720140462421,54.4306,127.14,126.93,63.02]
[1720140462422,58.8939,127.14,126.93,63.02]
[1720140462588,14.1691,127.15,127.08,7.869]
[1720140462785,7.8679,127.1,126.97,48.02]
[1720140462990,7.8679,127.1,127.03,19.6799]
[1720140463219,39.23,127.12,126.98,45.0]
[1720140463425,39.23,127.14,127.05,7.8708]
[1720140463603,39.23,127.14,127.03,7.8719]
[1720140463914,7.8689,127.09,127.04,45.0]
[1720140464121,7.871,127.05,126.98,27.5618]
[1720140464289,19.6705,127.1,126.98,19.687]
[1720140464488,7.8709,127.05,126.98,27.5622]
[1720140464703,7.8694,127.08,126.98,19.687]
[1720140464909,58.9005,127.1,126.98,19.687]
[1720140465219,47.0954,127.14,126.99,3.51611644]
[1720140465397,39.23,127.14,126.99,3.51611644]
[1720140465603,7.8685,127.09,127.02,19.6817]
[1720140465810,7.8665,127.13,127.05,19.677]
[1720140465991,7.8668,127.12,127.05,19.677]
[1720140466193,6.3044,127.15,127.05,27.5474]
[1720140466502,6.3044,127.15,126.99,3.51611644]
[1720140466503,6.3044,127.15,127.02,19.6813]
[1720140466711,7.8673,127.11,127.03,52.8716]
[1720140466897,7.8678,127.1,127.02,19.6813]
[1720140467102,7.8685,127.09,127.01,7.8732]
[1720140467301,7.8714,127.05,126.99,3.51611644]
[1720140467500,39.23,127.12,126.99,3.51611644]
[1720140467708,7.8683,127.1,127.02,27.5535]
[1720140467898,7.8683,127.1,127.03,7.8721]
[1720140468099,7.8688,127.09,127.02,19.6808]
[1720140468297,39.23,127.14,127.04,7.8714]
[1720140468506,7.8666,127.12,127.04,27.5493]
[1720140468710,6.3044,127.15,127.04,19.6779]
[1720140468922,6.3044,127.15,127.06,7.8698]
[1720140469127,7.8661,127.13,127.05,52.8707]
[1720140469293,6.3044,127.15,127.05,52.8707]
[1720140469727,6.3044,127.15,127.03,7.8717]
[1720140469728,7.8679,127.1,127.03,7.8717]
[1720140469929,7.8679,127.1,127.0,42.88573958]
[1720140469930,6.3044,127.15,127.0,42.88533958]
[1720140470229,6.3044,127.15,127.01,3.51556277]
[1720140470432,7.8682,127.1,127.02,7.8725]
[1720140470625,7.8684,127.09,127.01,23.19826277]
[1720140470803,0.17,127.08,127.01,23.19826277]
[1720140471015,0.17,127.08,127.01,3.51556277]
[1720140471326,7.8716,127.04,127.01,3.51556277]
[1720140471526,0.17,127.08,127.01,3.51556277]
[1720140471901,39.23,127.14,127.02,19.6819]
[1720140472095,7.8673,127.11,127.04,27.5494]
[1720140472299,7.8666,127.12,127.05,7.8708]
[1720140472495,7.8674,127.11,127.04,27.5495]
[1720140472731,7.8674,127.11,127.04,19.6781]
[1720140472915,7.8674,127.11,127.04,27.5495]
[1720140473229,7.8666,127.12,127.05,7.8708]
[1720140473425,7.8676,127.11,127.04,27.5494]
[1720140473732,7.8695,127.08,127.01,31.07126277]
[1720140474035,19.667,127.12,127.01,23.19846277]
[1720140474208,0.17,127.11,127.03,19.6796]
[1720140474401,19.6699,127.1,127.01,3.51556277]
[1720140474606,7.8727,127.02,127.01,3.51556277]
[1720140474804,0.17,127.02,126.88,15.9064]
[1720140475045,39.23,127.05,126.89,3.51888744]
[1720140475210,7.8765,126.96,126.89,23.22038744]
[1720140475405,0.17,126.95,126.89,23.22038744]
[1720140475725,0.17,126.95,126.89,31.10068744]
[1720140475907,7.876,126.97,126.9,7.8799]
[1720140476235,8.0465,126.96,126.89,31.10108744]
[1720140476409,7.8765,126.96,126.89,31.10108744]
[1720140476808,58.9143,127.01,126.91,7.8795]
[1720140476809,7.8757,126.98,126.91,7.8795]
[1720140477014,0.17,126.97,126.92,7.8789]
[1720140477219,7.8747,126.99,126.92,7.8789]
[1720140477405,7.8732,127.02,126.95,7.877]
[1720140477738,19.6793,127.04,126.9,409.8002]
[1720140477902,7.8751,126.99,126.91,48.51833289]
[1720140478105,19.6793,127.04,126.92,7.8788]
[1720140478305,7.8751,126.99,126.93,48.51777852]
[1720140478528,7.8743,127.0,126.94,45.0]
[1720140478729,119.6793,127.04,126.93,3.51777852]
[1720140479111,100.0,127.04,126.93,3.51777852]
[1720140479438,100.0,127.06,126.93,3.51777852]
[1720140479606,100.0,127.06,126.94,11.3950014]
[1720140479806,119.6766,127.06,126.94,23.2107014]
[1720140480131,7.875,126.99,126.94,3.5175014]
[1720140480342,100.0,127.04,126.94,3.5175014]
[1720140480518,7.876,126.97,126.94,3.5175014]
[1720140480841,7.8732,127.02,126.94,3.5175014]
[1720140481017,19.6764,127.06,126.94,3.5175014]
[1720140481202,7.8706,127.06,126.94,3.5175014]
[1720140481413,35.3521,127.09,126.97,19.6888]
[1720140481637,7.871,127.05,126.97,27.5641]
[1720140481839,19.6756,127.07,126.94,23.2111014]
[1720140482076,7.87,127.07,127.0,7.8739]
[1720140482215,7.8728,127.02,126.95,52.8768]
[1720140482419,100.0,127.08,126.95,45.0]
[1720140482617,19.6782,127.05,126.95,45.0]
[1720140482812,7.8754,126.98,126.94,3.5175014]
[1720140483018,19.6845,127.01,126.94,3.5175014]
[1720140483233,19.6791,127.04,126.94,3.5175014]
[1720140483420,0.17,127.0,126.87,19.7042]
[1720140483637,39.23,126.98,126.87,3.51944216]
[1720140483845,7.8777,126.94,126.87,11.40144216]
[1720140484034,7.8784,126.93,126.87,3.51944216]
[1720140484341,7.8767,126.96,126.88,19.7023]
[1720140484518,7.8744,127.0,126.89,3.51888744]
[1720140484717,100.0,127.09,126.97,19.6884]
[1720140484924,45.6994,127.1,126.89,441.63888744]
[1720140485132,7.8709,127.05,126.96,19.6902]
[1720140485352,7.8715,127.04,126.97,11.39247029]
[1720140485657,45.6994,127.1,126.97,393.61667029]
[1720140485948,19.6656,127.13,127.0,19.6837]
[1720140485949,119.6688,127.11,127.0,19.6837]
[1720140486150,7.8709,127.05,126.98,11.39159335]
[1720140486331,7.8738,127.01,126.98,3.51639335]
[1720140486529,7.8738,127.01,126.94,23.3811]
[1720140486530,7.8715,127.04,126.97,7.8755]
[1720140486748,7.8722,127.03,126.97,3.51667029]
[1720140486926,19.6752,127.07,126.97,11.39247029]
[1720140487122,39.23,127.09,126.99,19.6865]
[1720140487322,19.6649,127.13,127.03,7.8719]
[1720140487529,7.8682,127.1,127.03,7.8719]
[1720140487852,39.23,127.14,126.98,19.688]
[1720140487853,19.669,127.11,126.98,19.688]
[1720140488024,7.8695,127.08,127.0,7.8739]
[1720140488223,7.8699,127.07,127.0,7.8739]
[1720140488551,39.3308,127.13,126.99,3.51611644]
[1720140488552,100.0,127.08,126.99,3.51611644]
[1720140488733,7.874,127.0,126.99,3.51611644]
[1720140489736,158.9129,127.02,126.9,7.88]
[1720140490070,39.23,126.98,126.85,19.7077]
[1720140490254,7.8786,126.93,126.85,27.5908]
[1720140490545,8.0491,126.92,126.85,19.7077]
[1720140490744,7.8796,126.91,126.85,19.7077]
[1720140491071,7.8796,126.91,126.84,8.7200737]
[1720140491072,58.9254,126.94,126.84,0.8366737]
[1720140491220,0.17,126.93,126.84,0.8366737]
[1720140491421,178.46,127.02,126.89,7.8802]
[1720140491627,178.46,127.02,126.91,19.6981]
[1720140491628,39.23,127.02,126.91,19.6981]
[1720140491820,39.23,127.02,126.85,433.03519706]
[1720140491821,7.8772,126.95,126.88,7.8814]
[1720140492026,7.8757,126.98,126.85,433.03519706]
[1720140492245,19.6848,127.01,126.87,7.882]
[1720140492246,7.8776,126.95,126.87,7.882]
[1720140492575,7.8795,126.92,126.86,3.51971959]
[1720140492760,39.23,126.96,126.86,3.51971959]
[1720140492935,7.8785,126.93,126.85,397.9831]
[1720140493259,7.8776,126.95,126.87,7.8814]
[1720140493433,7.8795,126.92,126.85,390.1]
[1720140493750,39.23,126.96,126.85,390.1]
[1720140493751,19.864,126.95,126.85,390.1]
[1720140494054,19.694,126.95,126.85,390.1]
[1720140494358,106.2568,127.03,126.91,7.879]
[1720140494539,6.2568,127.03,126.85,456.63999706]
[1720140494739,7.8728,127.02,126.95,19.6927]
[1720140494931,100.0,127.07,126.92,27.575]
[1720140495142,7.8735,127.01,126.93,7.8783]
[1720140495435,7.8735,127.01,126.92,19.6967]
[1720140495436,19.6783,127.05,126.94,11.3950014]
[1720140495644,19.6783,127.05,126.94,3.5175014]
[1720140495845,7.874,127.0,126.94,3.5175014]
[1720140496034,78.5886,127.04,126.94,3.5175014]
[1720140496228,7.8741,127.0,126.94,3.5175014]
[1720140496454,7.8724,127.03,126.94,3.5175014]
[1720140496648,39.23,127.08,126.94,11.3948014]
[1720140496856,19.6767,127.06,126.94,3.5175014]
[1720140497266,7.8732,127.02,126.94,11.3951014]
[1720140497471,39.23,127.08,126.95,19.6918]
[1720140497772,39.23,127.08,126.9,48.02]
[1720140497773,7.8703,127.06,126.99,7.8744]
[1720140497986,7.8703,127.06,126.97,19.6893]
[1720140498174,139.3358,127.12,126.99,19.6856]
[1720140498175,39.3358,127.12,126.99,19.6856]
[1720140498352,19.6653,127.13,127.0,3.51583958]
[1720140498676,7.8685,127.09,127.01,7.8733]
[1720140498995,7.8654,127.14,127.06,7.8699]
[1720140499156,7.868,127.1,127.02,7.8721]
[1720140499354,19.6714,127.09,127.03,3.51500927]
[1720140499576,39.23,127.13,127.02,7.8721]
[1720140499884,7.8684,127.09,127.02,393.615286]
[1720140500184,7.8709,127.05,126.97,7.8756]
[1720140500369,19.6699,127.1,126.98,3.51639335]
[1720140500693,39.23,127.13,126.98,3.51639335]
[1720140500862,7.8678,127.11,127.03,27.552]
[1720140501059,7.8665,127.12,127.04,7.8713]
[1720140501352,100.1,127.19,127.07,7.8696]
[1720140501569,0.1,127.19,127.05,23.19045594]
[1720140501771,7.8664,127.13,127.06,3.51417934]
[1720140501974,7.8666,127.12,127.06,3.51417934]
[1720140502176,7.8681,127.1,127.06,3.51417934]
[1720140502459,7.8671,127.12,127.03,397.9716]
[1720140502669,7.8656,127.14,127.05,19.677]
[1720140502892,39.23,127.17,127.07,19.6731]
[1720140503083,19.7569,127.19,127.07,19.6731]
[1720140503084,0.1,127.19,127.07,390.1]
[1720140503263,0.1,127.19,127.11,19.667]
[1720140503451,0.1,127.19,127.12,7.8663]
[1720140503647,0.1,127.19,127.13,7.8657]
[1720140503879,0.1,127.19,127.11,19.667]
[1720140504080,0.1,127.19,127.12,3.51252067]
[1720140504277,0.1,127.19,127.14,19.6627]
[1720140504479,0.1,127.19,127.14,27.5279]
[1720140504688,0.1,127.19,127.14,19.6627]
[1720140504856,0.1,127.19,127.18,7.8628]
[1720140505076,7.8571,127.28,127.19,19.6545]
[1720140505266,0.9366737,127.29,127.19,19.6545]
[1720140505454,7.8593,127.24,127.16,7.8636]
[1720140505661,7.8584,127.26,127.17,7.8633]
[1720140505881,7.8586,127.25,127.15,23.17289192]
[1720140506074,59.8076737,127.29,127.19,7.8622]
[1720140506281,7.8587,127.25,127.17,19.6577]
[1720140506593,8.7929737,127.29,127.2,19.6539]
[1720140506900,0.9366737,127.29,127.21,3.51003559]
[1720140507493,0.9366737,127.29,127.27,7.8571]
[1720140507797,0.9366737,127.29,127.21,3.51003559]
[1720140507972,7.8571,127.28,127.21,3.51003559]
[1720140508295,0.9366737,127.29,127.21,3.51003559]
[1720140508456,0.9366737,127.29,127.21,11.37073559]
[1720140508653,0.9366737,127.29,127.21,3.51003559]
[1720140508873,7.8585,127.25,127.21,3.51003559]
[1720140509080,7.8591,127.24,127.16,27.5232]
[1720140509279,7.8611,127.21,127.17,3.51113963]
[1720140509450,39.23,127.24,127.1,429.4362]
[1720140509654,7.8575,127.27,127.11,51.532797]
[1720140509878,0.9366737,127.29,127.17,19.6584]
[1720140510182,8.7927737,127.29,127.2,27.5149]
[1720140510368,8.7927737,127.29,127.2,7.8611]
[1720140511296,0.17,127.28,127.2,7.8611]
[1720140511464,0.17,127.28,127.18,3.51086356]
[1720140511981,0.9366737,127.29,127.23,7.8594]
[1720140512211,0.9366737,127.29,127.22,19.6503]
[1720140512489,0.9366737,127.29,127.25,19.6448]
[1720140512689,0.9366737,127.29,127.26,3.50865651]
[1720140513057,0.9366737,127.29,127.28,7.8566]
[1720140513255,100.8366737,127.42,127.31,7.8544]
[1720140513557,7.8514,127.37,127.3,19.6374]
[1720140513758,20.4582737,127.42,127.3,19.6374]
[1720140513975,19.6245,127.4,127.26,23.15205651]
[1720140514170,7.8535,127.34,127.26,11.36635651]
[1720140514378,39.23,127.37,127.26,3.50865651]
[1720140514657,7.8585,127.25,127.18,27.5184]
[1720140514868,139.23,127.3,127.19,3.51058752]
[1720140515103,7.8598,127.23,127.15,7.8646]
[1720140515271,19.6414,127.29,127.16,23.17041575]
[1720140515691,45.17,127.28,127.17,7.8634]
[1720140515990,45.17,127.28,127.16,23.17041575]
[1720140515991,0.17,127.28,127.21,7.8607]
[1720140516162,100.17,127.28,127.17,7.8629]
[1720140516366,100.17,127.28,127.16,3.51141575]
[1720140516367,7.8605,127.22,127.16,3.51141575]
[1720140516567,7.8596,127.24,127.16,11.37541575]
[1720140516788,7.8606,127.22,127.16,3.51141575]
[1720140517157,0.17,127.21,127.16,3.51141575]
[1720140517361,0.17,127.22,127.18,7.8623]
[1720140517601,7.8577,127.27,127.17,19.6576]
[1720140517770,25.6556,127.31,127.18,3.51086356]
[1720140517964,7.859,127.25,127.18,3.51086356]
[1720140518286,100.0,127.28,127.18,3.51086356]
[1720140518603,64.6447,127.27,127.14,19.663]
[1720140518772,7.8604,127.22,127.14,27.5283]
[1720140519001,7.8603,127.23,127.15,7.8646]
[1720140519194,8.0305,127.22,127.15,7.8646]
[1720140519524,8.0309,127.22,127.14,27.5282]
[1720140519719,0.17,127.22,127.11,390.1]
[1720140519934,0.17,127.22,127.12,19.6656]
[1720140520092,39.23,127.25,127.12,19.6656]
[1720140520291,45.17,127.24,127.13,7.8654]
[1720140520597,7.8617,127.2,127.13,7.8654]
[1720140520798,0.17,127.19,127.11,23.180297]
[1720140520998,158.8761,127.26,127.15,7.8641]
[1720140521195,0.17,127.25,127.15,7.8641]
[1720140521394,7.8605,127.22,127.13,27.5291]
[1720140521704,158.8761,127.26,127.13,19.6638]
[1720140521900,19.6489,127.24,127.12,3.51252067]
[1720140522208,7.8615,127.21,127.12,23.17782067]
[1720140522409,8.0318,127.2,127.12,31.04382067]
[1720140522721,8.0317,127.2,127.12,31.04422067]
[1720140523299,0.17,127.2,127.12,3.51252067]
[1720140523505,45.0,127.21,127.12,3.51252067]
[1720140523700,7.8659,127.13,127.12,3.51252067]
[1720140523920,7.8654,127.14,127.12,3.51252067]
[1720140524118,0.17,127.13,127.12,3.51252067]
[1720140524303,39.23,127.18,127.12,3.51252067]
[1720140524616,39.23,127.22,127.12,3.51252067]
[1720140524801,7.8611,127.21,127.13,7.8654]
[1720140525006,19.6469,127.25,127.13,19.6635]
[1720140525203,7.8611,127.21,127.14,3.51196812]
[1720140525408,39.23,127.26,127.14,3.51196812]
[1720140525801,7.8627,127.19,127.14,3.51196812]
[1720140526017,119.6489,127.24,127.14,3.51196812]
[1720140526202,7.8634,127.18,127.14,3.51196812]
[1720140526523,119.6489,127.24,127.14,3.51196812]
[1720140526524,7.8636,127.17,127.14,3.51196812]
[1720140526909,8.0342,127.16,127.14,3.51196812]
[1720140527122,119.6473,127.25,127.08,39.3442]
[1720140527308,45.17,127.24,127.12,19.6654]
[1720140527502,100.0,127.23,127.09,3.51334981]
[1720140527711,7.8652,127.15,127.09,3.51334981]
[1720140527900,0.17,127.14,127.09,3.51334981]
[1720140528105,39.23,127.21,127.1,19.6686]
[1720140528326,7.8641,127.16,127.1,19.6686]
[1720140528525,7.8643,127.16,127.09,11.38114981]
[1720140528723,0.17,127.15,127.09,11.38114981]
[1720140529109,0.17,127.15,127.09,3.51334981]
[1720140529423,100.17,127.15,127.01,0.1]
[1720140529604,19.6675,127.12,127.01,0.1]
[1720140529803,100.17,127.11,127.01,0.1]
[1720140530521,7.8691,127.08,127.01,7.9733]
[1720140530913,0.17,127.07,127.01,0.1]
[1720140531098,0.17,127.07,127.05,7.8703]
[1720140531296,39.23,127.14,127.01,23.29816277]
[1720140531498,7.8677,127.11,127.02,3.515286]
[1720140531923,100.0,127.17,127.02,3.515286]
[1720140531924,119.6601,127.17,127.03,19.6797]
[1720140532109,119.6601,127.17,127.05,7.8707]
[1720140532303,7.867,127.12,127.03,19.6797]
[1720140532514,7.866,127.13,127.05,7.8708]